fUSD/lending_fUSD_20260622
["ID","MTS","AMOUNT","RATE_DAILY","PERIOD"]
[426054271,1782131554000,-1706.4,0.00029863,2]
[426054256,1782131554000,-500.0,0.00029863,2]
[426054246,1782131554000,-566.57,0.00029863,2]
[426054258,1782131554000,-549.87340849,0.00029863,2]
[426054240,1782131554000,-500.0,0.00029863,2]
[426054242,1782131554000,-2693.07,0.00029863,2]
[426054241,1782131554000,-500.0,0.00029863,2]
[426054243,1782131554000,-733.03,0.00029863,2]
[426054245,1782131554000,-500.0,0.00029863,2]
[426054247,1782131554000,-500.0,0.00029863,2]
[426054280,1782131554000,-500.0,0.00029863,2]
[426054244,1782131554000,-861.51,0.00029863,2]
[426054259,1782131554000,-500.0,0.00029863,2]
[426054249,1782131554000,-500.0,0.00029863,2]
[426054250,1782131554000,-804.78,0.00029863,2]
[426054251,1782131554000,-593.89,0.00029863,2]
[426054252,1782131554000,-2103.48,0.00029863,2]
[426054260,1782131554000,-209.84,0.00029863,2]
[426054254,1782131554000,-500.0,0.00029863,2]
[426054257,1782131554000,-500.0,0.00029863,2]
[426054255,1782131554000,-500.0,0.00029863,2]
[426054253,1782131554000,-500.0,0.00029863,2]
[426054248,1782131554000,-1000.0,0.00029863,2]
[426054279,1782131554000,-1326.5,0.00029863,2]
[426054262,1782131554000,-554.28,0.00029863,2]
[426054282,1782131554000,-604.11,0.00029863,2]
[426054313,1782131554000,-500.0,0.00029863,2]
[426054304,1782131554000,-3395.17,0.00029863,2]
[426054314,1782131554000,-500.0,0.00029863,2]
[426054307,1782131554000,-1838.48,0.00029863,2]
[426054306,1782131554000,-695.59,0.00029863,2]
[426054308,1782131554000,-500.0,0.00029863,2]
[426054309,1782131554000,-600.0,0.00029863,2]
[426054310,1782131554000,-711.86,0.00029863,2]
[426054311,1782131554000,-504.85,0.00029863,2]
[426054315,1782131554000,-500.0,0.00029863,2]
[426054321,1782131554000,-4113.41,0.00029863,2]
[426054318,1782131554000,-4341.82,0.00029863,2]
[426054319,1782131554000,-6186.73,0.00029863,2]
[426054316,1782131554000,-500.0,0.00029863,2]
[426054317,1782131554000,-500.0,0.00029863,2]
[426054322,1782131554000,-2940.44,0.00029863,2]
[426054323,1782131554000,-11028.8,0.00029863,2]
[426054324,1782131554000,-616.23,0.00029863,2]
[426054283,1782131554000,-500.0,0.00029863,2]
[426054312,1782131554000,-500.0,0.00029863,2]
[426054305,1782131554000,-1362.17,0.00029863,2]
[426054320,1782131554000,-500.0,0.00029863,2]
[426054297,1782131554000,-500.0,0.00029863,2]
[426054285,1782131554000,-553.22,0.00029863,2]
[426054301,1782131554000,-500.0,0.00029863,2]
[426054284,1782131554000,-1302.85,0.00029863,2]
[426054286,1782131554000,-3549.98,0.00029863,2]
[426054287,1782131554000,-636.95,0.00029863,2]
[426054289,1782131554000,-500.0,0.00029863,2]
[426054291,1782131554000,-1158.24,0.00029863,2]
[426054288,1782131554000,-500.0,0.00029863,2]
[426054290,1782131554000,-784.56,0.00029863,2]
[426054292,1782131554000,-519.8,0.00029863,2]
[426054293,1782131554000,-567.35,0.00029863,2]
[426054303,1782131554000,-500.0,0.00029863,2]
[426054298,1782131554000,-500.0,0.00029863,2]
[426054300,1782131554000,-1496.54,0.00029863,2]
[426054294,1782131554000,-500.0,0.00029863,2]
[426054296,1782131554000,-500.0,0.00029863,2]
[426054302,1782131554000,-500.0,0.00029863,2]
[426054295,1782131554000,-546.18,0.00029863,2]
[426054299,1782131554000,-1271.92,0.00029863,2]
[426054353,1782131555000,-500.0,0.00029863,2]
[426054362,1782131555000,-6597.51,0.00029863,2]
[426054368,1782131555000,-9672.86,0.00029863,2]
[426054367,1782131555000,-500.0,0.00029863,2]
[426054361,1782131555000,-4492.09,0.00029863,2]
[426054359,1782131555000,-4227.56,0.00029863,2]
[426054358,1782131555000,-6843.28,0.00029863,2]
[426054355,1782131555000,-500.0,0.00029863,2]
[426054356,1782131555000,-500.0,0.00029863,2]
[426054364,1782131555000,-7004.08,0.00029863,2]
[426054360,1782131555000,-1169.7,0.00029863,2]
[426054365,1782131555000,-500.0,0.00029863,2]
[426054377,1782131555000,-500.0,0.00029863,2]
[426054363,1782131555000,-5976.83,0.00029863,2]
[426054369,1782131555000,-500.0,0.00029863,2]
[426054370,1782131555000,-658.07,0.00029863,2]
[426054376,1782131555000,-4376.06,0.00029863,2]
[426054374,1782131555000,-1002.58,0.00029863,2]
[426054372,1782131555000,-500.0,0.00029863,2]
[426054378,1782131555000,-500.0,0.00029863,2]
[426054373,1782131555000,-500.0,0.00029863,2]
[426054371,1782131555000,-909.43,0.00029863,2]
[426054380,1782131555000,-919.77,0.00029863,2]
[426054354,1782131555000,-500.0,0.00029863,2]
[426054381,1782131555000,-300.0,0.00029863,2]
[426054366,1782131555000,-500.0,0.00029863,2]
[426054349,1782131555000,-1413.15,0.00029863,2]
[426054329,1782131555000,-500.0,0.00029863,2]
[426054350,1782131555000,-7121.05,0.00029863,2]
[426054375,1782131555000,-8639.58,0.00029863,2]
[426054326,1782131555000,-5138.93,0.00029863,2]
[426054328,1782131555000,-1204.89,0.00029863,2]
[426054333,1782131555000,-2000.0,0.00029863,2]
[426054331,1782131555000,-500.0,0.00029863,2]
[426054334,1782131555000,-8197.77,0.00029863,2]
[426054330,1782131555000,-849.12,0.00029863,2]
[426054327,1782131555000,-500.0,0.00029863,2]
[426054325,1782131555000,-847.85,0.00029863,2]
[426054332,1782131555000,-500.0,0.00029863,2]
[426054336,1782131555000,-500.0,0.00029863,2]
[426054337,1782131555000,-3373.56,0.00029863,2]
[426054335,1782131555000,-500.0,0.00029863,2]
[426054338,1782131555000,-687.7,0.00029863,2]
[426054339,1782131555000,-570.0,0.00029863,2]
[426054342,1782131555000,-500.0,0.00029863,2]
[426054341,1782131555000,-685.72,0.00029863,2]
[426054345,1782131555000,-591.59,0.00029863,2]
[426054344,1782131555000,-557.86,0.00029863,2]
[426054343,1782131555000,-500.0,0.00029863,2]
[426054340,1782131555000,-713.2,0.00029863,2]
[426054346,1782131555000,-1010.5,0.00029863,2]
[426054348,1782131555000,-500.0,0.00029863,2]
[426054351,1782131555000,-657.57,0.00029863,2]
[426054347,1782131555000,-500.0,0.00029863,2]
[426054357,1782131555000,-500.0,0.00029863,2]
[426054379,1782131555000,-8686.62,0.00029863,2]
[426054352,1782131555000,-500.0,0.00029863,2]
[426054382,1782131555000,-500.0,0.00029863,2]
[426054413,1782131555000,-537.51,0.00029863,2]
[426054415,1782131555000,-805.85,0.00029863,2]
[426054412,1782131555000,-420.64,0.00029863,2]
[426054414,1782131555000,-777.53,0.00029863,2]
[426054417,1782131555000,-500.0,0.00029863,2]
[426054420,1782131555000,-1013.21,0.00029863,2]
[426054422,1782131555000,-500.0,0.00029863,2]
[426054419,1782131555000,-500.0,0.00029863,2]
[426054421,1782131555000,-948.85,0.00029863,2]
[426054424,1782131555000,-500.0,0.00029863,2]
[426054418,1782131555000,-879.74,0.00029863,2]
[426054427,1782131555000,-7213.78,0.00029872,2]
[426054426,1782131555000,-984.2,0.00029863,2]
[426054423,1782131555000,-500.0,0.00029863,2]
[426054425,1782131555000,-500.0,0.00029863,2]
[426054428,1782131555000,-1026.81,0.00029873,30]
[426054429,1782131555000,-963.21385379,0.00029874,2]
[426054436,1782131555000,-1192.08596669,0.00029874,2]
[426054434,1782131555000,-1112.45252612,0.00029874,2]
[426054431,1782131555000,-1042.16202224,0.00029874,2]
[426054432,1782131555000,-1036.94005681,0.00029874,2]
[426054435,1782131555000,-1105.9015901,0.00029874,2]
[426054437,1782131555000,-1222.06567513,0.00029874,2]
[426054430,1782131555000,-999.84346013,0.00029874,2]
[426054438,1782131555000,-1160.59648102,0.00029874,2]
[426054411,1782131555000,-500.0,0.00029863,2]
[426054433,1782131555000,-1186.14579276,0.00029874,2]
[426054383,1782131555000,-500.0,0.00029863,2]
[426054410,1782131555000,-1281.85,0.00029863,2]
[426054389,1782131555000,-844.33,0.00029863,2]
[426054387,1782131555000,-500.0,0.00029863,2]
[426054390,1782131555000,-500.0,0.00029863,2]
[426054388,1782131555000,-775.18,0.00029863,2]
[426054386,1782131555000,-5625.93,0.00029863,2]
[426054384,1782131555000,-500.0,0.00029863,2]
[426054385,1782131555000,-500.0,0.00029863,2]
[426054409,1782131555000,-500.0,0.00029863,2]
[426054392,1782131555000,-1087.5,0.00029863,2]
[426054395,1782131555000,-500.0,0.00029863,2]
[426054393,1782131555000,-912.76,0.00029863,2]
[426054398,1782131555000,-2044.4,0.00029863,2]
[426054397,1782131555000,-2905.9,0.00029863,2]
[426054391,1782131555000,-500.0,0.00029863,2]
[426054401,1782131555000,-500.0,0.00029863,2]
[426054403,1782131555000,-500.0,0.00029863,2]
[426054405,1782131555000,-895.47,0.00029863,2]
[426054407,1782131555000,-781.2,0.00029863,2]
[426054408,1782131555000,-554.0,0.00029863,2]
[426054406,1782131555000,-500.0,0.00029863,2]
[426054416,1782131555000,-500.0,0.00029863,2]
[426054402,1782131555000,-513.61,0.00029863,2]
[426054394,1782131555000,-500.0,0.00029863,2]
[426054404,1782131555000,-500.0,0.00029863,2]
[426054400,1782131555000,-500.0,0.00029863,2]
[426054396,1782131555000,-729.92,0.00029863,2]
[426054399,1782131555000,-4175.97,0.00029863,2]
[426054485,1782131556000,-1128.39564818,0.0003,2]
[426054482,1782131556000,-20315.80113298,0.0003,2]
[426054484,1782131556000,-583277.37461377,0.0003,2]
[426054479,1782131556000,-154345.0827368,0.0003,7]
[426054483,1782131556000,-1116.38150293,0.0003,2]
[426054473,1782131556000,-1500.0,0.0003,2]
[426054471,1782131556000,-1500.0,0.0003,2]
[426054470,1782131556000,-1500.0,0.0003,2]
[426054464,1782131556000,-242.26841692,0.0002999,2]
[426054463,1782131556000,-1026.81,0.00029982,30]
[426054474,1782131556000,-1500.0,0.0003,2]
[426054476,1782131556000,-1000.0,0.0003,2]
[426054493,1782131556000,-5000.0,0.0003,31]
[426054477,1782131556000,-166.56506617,0.0003,2]
[426054478,1782131556000,-400.81602693,0.0003,2]
[426054480,1782131556000,-275.70044765,0.0003,2]
[426054481,1782131556000,-244.20004736,0.0003,2]
[426054486,1782131556000,-1857.92254229,0.0003,2]
[426054487,1782131556000,-13000.0,0.0003,2]
[426054488,1782131556000,-3000.0,0.0003,20]
[426054489,1782131556000,-10824.20476461,0.0003,2]
[426054497,1782131556000,-108788.39151993,0.0003,5]
[426054494,1782131556000,-301.27389882,0.0003,2]
[426054496,1782131556000,-197719.57840608,0.0003,2]
[426054468,1782131556000,-1500.0,0.0003,2]
[426054475,1782131556000,-1500.0,0.0003,2]
[426054467,1782131556000,-50000.0,0.0003,2]
[426054453,1782131556000,-785.0,0.00029912,2]
[426054472,1782131556000,-1500.0,0.0003,2]
[426054490,1782131556000,-481.89706092,0.0003,5]
[426054440,1782131556000,-1027.24606932,0.00029874,2]
[426054443,1782131556000,-198.56,0.000299,2]
[426054448,1782131556000,-672.0,0.00029909,30]
[426054442,1782131556000,-188.97,0.000299,2]
[426054449,1782131556000,-436.0,0.00029909,30]
[426054445,1782131556000,-618.98,0.000299,2]
[426054447,1782131556000,-108000.0,0.000299,30]
[426054450,1782131556000,-166.14951849,0.00029909,30]
[426054441,1782131556000,-80614.61001042,0.000299,2]
[426054446,1782131556000,-13570.52,0.000299,2]
[426054444,1782131556000,-3927.94,0.000299,2]
[426054452,1782131556000,-1285.07,0.00029912,2]
[426054462,1782131556000,-137352.03102761,0.0002998,7]
[426054454,1782131556000,-928.72,0.00029913,2]
[426054451,1782131556000,-285.84,0.00029912,2]
[426054456,1782131556000,-181.0,0.00029937,30]
[426054455,1782131556000,-180.0,0.00029937,30]
[426054459,1782131556000,-1115.0,0.00029953,30]
[426054458,1782131556000,-826.0,0.00029953,30]
[426054457,1782131556000,-159.0,0.00029937,30]
[426054461,1782131556000,-166.0,0.00029953,30]
[426054460,1782131556000,-156.0,0.00029953,30]
[426054466,1782131556000,-50000.0,0.0003,3]
[426054469,1782131556000,-1500.0,0.0003,2]
[426054465,1782131556000,-50000.0,0.0003,4]
[426054439,1782131556000,-1088.2310222,0.00029874,2]
[426054495,1782131556000,-1283.74688991,0.0003,7]
[426054491,1782131556000,-10215.41508726,0.0003,5]
[426054523,1782131556000,-1500.0,0.0003,2]
[426054527,1782131556000,-2499.95,0.0003,2]
[426054528,1782131556000,-12500.0,0.0003,2]
[426054530,1782131556000,-314.55,0.0003,2]
[426054532,1782131556000,-2475.83,0.0003,2]
[426054534,1782131556000,-1492.65,0.0003,2]
[426054533,1782131556000,-3162.27,0.0003,2]
[426054535,1782131556000,-217.6,0.0003,2]
[426054542,1782131556000,-10000.0,0.0003,2]
[426054539,1782131556000,-1696.84,0.0003,2]
[426054537,1782131556000,-1614.97,0.0003,2]
[426054538,1782131556000,-190.65,0.0003,2]
[426054536,1782131556000,-289.69,0.0003,2]
[426054541,1782131556000,-12500.0,0.0003,2]
[426054544,1782131556000,-15000.0,0.0003,2]
[426054546,1782131556000,-2500.0,0.0003,2]
[426054547,1782131556000,-1522.87,0.0003,2]
[426054545,1782131556000,-6790.86,0.0003,2]
[426054543,1782131556000,-22500.0,0.0003,2]
[426054549,1782131556000,-12500.0,0.0003,2]
[426054548,1782131556000,-3354.29,0.0003,2]
[426054551,1782131556000,-2500.0,0.0003,2]
[426054550,1782131556000,-16127.76,0.0003,2]
[426054552,1782131556000,-12500.0,0.0003,2]
[426054492,1782131556000,-1500.0,0.0003,3]
[426054529,1782131556000,-280.7,0.0003,2]
[426054526,1782131556000,-1624.05,0.0003,2]
[426054540,1782131556000,-15000.0,0.0003,2]
[426054525,1782131556000,-500.0,0.0003,2]
[426054522,1782131556000,-586.39,0.0003,30]
[426054502,1782131556000,-301.0,0.0003,28]
[426054503,1782131556000,-10186.98115065,0.0003,30]
[426054498,1782131556000,-77156.00163332,0.0003,5]
[426054501,1782131556000,-17200.97408322,0.0003,2]
[426054505,1782131556000,-16374.0,0.0003,30]
[426054500,1782131556000,-1500.0,0.0003,3]
[426054504,1782131556000,-198016.6743,0.0003,30]
[426054507,1782131556000,-1000.0,0.0003,2]
[426054508,1782131556000,-1000.0,0.0003,2]
[426054506,1782131556000,-1000.0,0.0003,2]
[426054509,1782131556000,-1000.0,0.0003,2]
[426054512,1782131556000,-11000.0,0.0003,30]
[426054499,1782131556000,-10061.75922834,0.0003,5]
[426054514,1782131556000,-199775.92625416,0.0003,4]
[426054513,1782131556000,-64220.05755676,0.0003,7]
[426054520,1782131556000,-324.65,0.0003,7]
[426054531,1782131556000,-693.12,0.0003,2]
[426054521,1782131556000,-566.11510094,0.0003,3]
[426054517,1782131556000,-1500.0,0.0003,2]
[426054519,1782131556000,-28808.40010603,0.0003,30]
[426054524,1782131556000,-202.26,0.0003,11]
[426054518,1782131556000,-6000.0,0.0003,30]
[426054516,1782131556000,-7586.37057065,0.0003,2]
[426054511,1782131556000,-63000.18462378,0.0003,2]
[426054515,1782131556000,-83936.56664974,0.0003,4]
[426054510,1782131556000,-1000.0,0.0003,2]
[426054594,1782131557000,-489.0,0.00030018,30]
[426054593,1782131557000,-749.0,0.00030001,2]
[426054608,1782131557000,-749.0,0.00030082,14]
[426054579,1782131557000,-4625.97,0.0003,2]
[426054591,1782131557000,-749.0,0.00030001,2]
[426054586,1782131557000,-200.0,0.0003,2]
[426054589,1782131557000,-200.0,0.0003,2]
[426054581,1782131557000,-22500.0,0.0003,2]
[426054588,1782131557000,-3496.5,0.0003,2]
[426054592,1782131557000,-749.0,0.00030001,2]
[426054582,1782131557000,-4455.59,0.0003,2]
[426054600,1782131557000,-749.0,0.00030082,14]
[426054603,1782131557000,-749.0,0.00030082,14]
[426054596,1782131557000,-202.0,0.00030018,30]
[426054597,1782131557000,-537.0,0.00030037,2]
[426054595,1782131557000,-156.0,0.00030018,30]
[426054598,1782131557000,-275.368847,0.0003008,2]
[426054601,1782131557000,-749.0,0.00030082,14]
[426054610,1782131557000,-749.0,0.00030082,14]
[426054602,1782131557000,-749.0,0.00030082,14]
[426054609,1782131557000,-749.0,0.00030082,14]
[426054607,1782131557000,-749.0,0.00030082,14]
[426054606,1782131557000,-749.0,0.00030082,14]
[426054605,1782131557000,-749.0,0.00030082,14]
[426054583,1782131557000,-3444.88,0.0003,2]
[426054599,1782131557000,-200.0,0.00030082,2]
[426054584,1782131557000,-650.0,0.0003,2]
[426054553,1782131557000,-22500.0,0.0003,2]
[426054585,1782131557000,-302.41,0.0003,2]
[426054554,1782131557000,-25000.0,0.0003,2]
[426054563,1782131557000,-2719.62,0.0003,2]
[426054564,1782131557000,-3573.14,0.0003,2]
[426054556,1782131557000,-12500.0,0.0003,2]
[426054560,1782131557000,-22499.99,0.0003,2]
[426054562,1782131557000,-25000.0,0.0003,2]
[426054559,1782131557000,-2500.0,0.0003,2]
[426054557,1782131557000,-22500.0,0.0003,2]
[426054555,1782131557000,-2500.0,0.0003,2]
[426054558,1782131557000,-25000.0,0.0003,2]
[426054561,1782131557000,-2500.0,0.0003,2]
[426054566,1782131557000,-14999.99,0.0003,2]
[426054580,1782131557000,-2500.0,0.0003,2]
[426054576,1782131557000,-22500.0,0.0003,2]
[426054565,1782131557000,-12499.99,0.0003,2]
[426054567,1782131557000,-4096.73,0.0003,2]
[426054568,1782131557000,-8912.77,0.0003,2]
[426054573,1782131557000,-15000.0,0.0003,2]
[426054571,1782131557000,-8813.52,0.0003,2]
[426054569,1782131557000,-10697.35,0.0003,2]
[426054570,1782131557000,-15000.0,0.0003,2]
[426054575,1782131557000,-12499.99,0.0003,2]
[426054574,1782131557000,-12500.0,0.0003,2]
[426054572,1782131557000,-1665.53,0.0003,2]
[426054578,1782131557000,-2500.0,0.0003,2]
[426054587,1782131557000,-2500.0,0.0003,2]
[426054577,1782131557000,-25000.0,0.0003,2]
[426054612,1782131557000,-749.0,0.00030082,14]
[426054590,1782131557000,-1263.83326915,0.00030001,2]
[426054611,1782131557000,-749.0,0.00030082,14]
[426054642,1782131557000,-5042.3049301,0.0003013,2]
[426054644,1782131557000,-31042.99585625,0.0003013,2]
[426054645,1782131557000,-644.9715942,0.00030135,2]
[426054646,1782131557000,-5429.53737326,0.00030136,30]
[426054647,1782131557000,-819.26,0.00030136,2]
[426054655,1782131557000,-947.67,0.00030136,2]
[426054651,1782131557000,-680.9,0.00030136,2]
[426054660,1782131557000,-500.0,0.00030136,2]
[426054649,1782131557000,-500.0,0.00030136,2]
[426054657,1782131557000,-1724.88,0.00030136,2]
[426054650,1782131557000,-500.0,0.00030136,2]
[426054652,1782131557000,-970.83,0.00030136,2]
[426054641,1782131557000,-850.0,0.0003013,2]
[426054653,1782131557000,-633.7,0.00030136,2]
[426054656,1782131557000,-500.0,0.00030136,2]
[426054658,1782131557000,-500.0,0.00030136,2]
[426054662,1782131557000,-500.0,0.00030136,2]
[426054661,1782131557000,-1276.25,0.00030136,2]
[426054668,1782131557000,-755.16,0.00030136,2]
[426054663,1782131557000,-500.0,0.00030136,2]
[426054664,1782131557000,-500.0,0.00030136,2]
[426054667,1782131557000,-2673.46,0.00030136,2]
[426054666,1782131557000,-666.68,0.00030136,2]
[426054669,1782131557000,-695.0,0.00030136,2]
[426054665,1782131557000,-550.63821792,0.00030136,2]
[426054604,1782131557000,-749.0,0.00030082,14]
[426054659,1782131557000,-539.78,0.00030136,2]
[426054640,1782131557000,-30110.77913911,0.0003013,2]
[426054654,1782131557000,-513.94,0.00030136,2]
[426054639,1782131557000,-1923.3425778,0.0003013,2]
[426054614,1782131557000,-749.0,0.00030082,14]
[426054643,1782131557000,-99018.81270683,0.0003013,2]
[426054615,1782131557000,-749.0,0.00030082,14]
[426054616,1782131557000,-749.0,0.00030082,14]
[426054617,1782131557000,-749.0,0.00030082,14]
[426054618,1782131557000,-749.0,0.00030082,14]
[426054621,1782131557000,-749.0,0.00030082,14]
[426054622,1782131557000,-749.0,0.00030082,14]
[426054620,1782131557000,-749.0,0.00030082,14]
[426054619,1782131557000,-749.0,0.00030082,14]
[426054623,1782131557000,-763.80901144,0.00030082,14]
[426054624,1782131557000,-1026.81,0.00030091,30]
[426054627,1782131557000,-2385.63505339,0.000301,2]
[426054626,1782131557000,-92846.86,0.000301,2]
[426054613,1782131557000,-749.0,0.00030082,14]
[426054629,1782131557000,-15000.0,0.000301,2]
[426054628,1782131557000,-15000.0,0.000301,2]
[426054648,1782131557000,-585.84,0.00030136,2]
[426054638,1782131557000,-22500.0,0.00030125,2]
[426054633,1782131557000,-12500.0,0.00030125,2]
[426054631,1782131557000,-501.0,0.00030107,5]
[426054634,1782131557000,-22500.0,0.00030125,2]
[426054635,1782131557000,-22500.0,0.00030125,2]
[426054630,1782131557000,-445.882329,0.00030106,7]
[426054636,1782131557000,-22499.99,0.00030125,2]
[426054625,1782131557000,-37055.71,0.000301,2]
[426054632,1782131557000,-468.128208,0.00030111,7]
[426054637,1782131557000,-12499.99,0.00030125,2]
[426054707,1782131558000,-807.35,0.00030136,2]
[426054710,1782131558000,-528.44,0.00030136,2]
[426054709,1782131558000,-500.0,0.00030136,2]
[426054712,1782131558000,-501.54,0.00030136,2]
[426054699,1782131558000,-515.21,0.00030136,2]
[426054703,1782131558000,-594.48638584,0.00030136,2]
[426054704,1782131558000,-500.0,0.00030136,2]
[426054705,1782131558000,-500.0,0.00030136,2]
[426054713,1782131558000,-593.04,0.00030136,2]
[426054700,1782131558000,-562.32,0.00030136,2]
[426054706,1782131558000,-500.0,0.00030136,2]
[426054717,1782131558000,-691.46,0.00030136,2]
[426054718,1782131558000,-725.12,0.00030136,2]
[426054708,1782131558000,-721.3,0.00030136,2]
[426054714,1782131558000,-1181.38,0.00030136,2]
[426054716,1782131558000,-500.0,0.00030136,2]
[426054715,1782131558000,-548.72,0.00030136,2]
[426054719,1782131558000,-500.0,0.00030136,2]
[426054720,1782131558000,-603.54546246,0.00030136,2]
[426054726,1782131558000,-703.04,0.00030136,2]
[426054722,1782131558000,-362.67079213,0.00030136,2]
[426054723,1782131558000,-500.0,0.00030136,2]
[426054725,1782131558000,-531.43,0.00030136,2]
[426054727,1782131558000,-617.49,0.00030136,2]
[426054701,1782131558000,-500.0,0.00030136,2]
[426054711,1782131558000,-678.94,0.00030136,2]
[426054702,1782131558000,-500.0,0.00030136,2]
[426054672,1782131558000,-500.51,0.00030136,2]
[426054698,1782131558000,-688.82,0.00030136,2]
[426054721,1782131558000,-1255.65,0.00030136,2]
[426054671,1782131558000,-500.0,0.00030136,2]
[426054670,1782131558000,-500.0,0.00030136,2]
[426054673,1782131558000,-557.46,0.00030136,2]
[426054675,1782131558000,-1180.24,0.00030136,2]
[426054677,1782131558000,-661.35,0.00030136,2]
[426054674,1782131558000,-500.0,0.00030136,2]
[426054679,1782131558000,-983.84,0.00030136,2]
[426054684,1782131558000,-500.0,0.00030136,2]
[426054683,1782131558000,-500.0,0.00030136,2]
[426054676,1782131558000,-500.0,0.00030136,2]
[426054681,1782131558000,-500.0,0.00030136,2]
[426054682,1782131558000,-500.0,0.00030136,2]
[426054678,1782131558000,-739.37,0.00030136,2]
[426054680,1782131558000,-500.0,0.00030136,2]
[426054686,1782131558000,-500.0,0.00030136,2]
[426054696,1782131558000,-500.0,0.00030136,2]
[426054685,1782131558000,-714.12,0.00030136,2]
[426054688,1782131558000,-511.5,0.00030136,2]
[426054687,1782131558000,-500.0,0.00030136,2]
[426054691,1782131558000,-500.0,0.00030136,2]
[426054689,1782131558000,-586.89,0.00030136,2]
[426054690,1782131558000,-500.0,0.00030136,2]
[426054694,1782131558000,-1404.94,0.00030136,2]
[426054693,1782131558000,-500.0,0.00030136,2]
[426054692,1782131558000,-614.75,0.00030136,2]
[426054695,1782131558000,-1137.32,0.00030136,2]
[426054697,1782131558000,-500.0,0.00030136,2]
[426054729,1782131558000,-944.23,0.00030136,2]
[426054735,1782131558000,-850.25,0.00030136,2]
[426054728,1782131558000,-1040.83,0.00030136,2]
[426054756,1782131558000,-496.93077499,0.00030136,2]
[426054766,1782131558000,-853.2,0.00030136,2]
[426054762,1782131558000,-504.09,0.00030136,2]
[426054761,1782131558000,-790.07,0.00030136,2]
[426054764,1782131558000,-790.49,0.00030136,2]
[426054768,1782131558000,-500.0,0.00030136,2]
[426054778,1782131558000,-992.54,0.00030136,2]
[426054779,1782131558000,-617.25,0.00030136,2]
[426054767,1782131558000,-564.32,0.00030136,2]
[426054769,1782131558000,-900.89,0.00030136,2]
[426054770,1782131558000,-500.0,0.00030136,2]
[426054771,1782131558000,-309.92615334,0.00030136,2]
[426054765,1782131558000,-510.33,0.00030136,2]
[426054774,1782131558000,-500.0,0.00030136,2]
[426054775,1782131558000,-715.39,0.00030136,2]
[426054776,1782131558000,-636.73,0.00030136,2]
[426054777,1782131558000,-702.96,0.00030136,2]
[426054773,1782131558000,-500.0,0.00030136,2]
[426054724,1782131558000,-500.0,0.00030136,2]
[426054783,1782131558000,-500.0,0.00030136,2]
[426054782,1782131558000,-500.0,0.00030136,2]
[426054781,1782131558000,-947.18,0.00030136,2]
[426054786,1782131558000,-1250.12,0.00030136,2]
[426054785,1782131558000,-500.0,0.00030136,2]
[426054787,1782131558000,-858.12,0.00030136,2]
[426054784,1782131558000,-524.23,0.00030136,2]
[426054772,1782131558000,-500.0,0.00030136,2]